[Event "Early-Titled-Tuesday-Blitz-February-06-2024"]
[Site "Chess.com"]
[Date "2024.02.06"]
[Round "10"]
[White "GelmanAlexander"]
[Black "edgarhay012"]
[Result "0-1"]
[WhiteElo "2766"]
[BlackElo "2567"]
[TimeControl "180+1"]
[EndTime "9:54:13 PST"]
[Termination "edgarhay012 won by resignation"]

1. c4 {[%clk 0:03:00.9]} 1... e5 {[%clk 0:03:00]} 2. e3 {[%clk 0:03:01]} 2...
Nf6 {[%clk 0:02:44.5]} 3. a3 {[%clk 0:03:00.5]} 3... c6 {[%clk 0:02:44.4]} 4. b4
{[%clk 0:02:59.8]} 4... d5 {[%clk 0:02:44.5]} 5. Bb2 {[%clk 0:03:00.4]} 5...
Nbd7 {[%clk 0:02:44.8]} 6. Nf3 {[%clk 0:03:00.6]} 6... Bd6 {[%clk 0:02:45]} 7.
d4 {[%clk 0:03:00.5]} 7... e4 {[%clk 0:02:45.2]} 8. Nfd2 {[%clk 0:03:00.6]} 8...
O-O {[%clk 0:02:45.5]} 9. g4 {[%clk 0:02:56.7]} 9... dxc4 {[%clk 0:02:26.1]} 10.
Nxc4 {[%clk 0:02:53.1]} 10... Bc7 {[%clk 0:02:21.7]} 11. Nbd2 {[%clk 0:02:38.5]}
11... Re8 {[%clk 0:02:15.2]} 12. h4 {[%clk 0:02:28]} 12... Nb6 {[%clk
0:02:03.9]} 13. Ne5 {[%clk 0:02:27.5]} 13... Bxe5 {[%clk 0:01:56.7]} 14. dxe5
{[%clk 0:02:27.5]} 14... Nxg4 {[%clk 0:01:55.6]} 15. Nxe4 {[%clk 0:01:48.6]}
15... Nd5 {[%clk 0:01:43.4]} 16. Qf3 {[%clk 0:01:19.9]} 16... Nxe5 {[%clk
0:01:29.2]} 17. Qg3 {[%clk 0:01:18.1]} 17... Ng4 {[%clk 0:01:20.8]} 18. Bd3
{[%clk 0:00:58.7]} 18... f5 {[%clk 0:01:18.9]} 19. Nd6 {[%clk 0:00:42.5]} 19...
f4 {[%clk 0:01:01.8]} 20. Nxe8 {[%clk 0:00:19.6]} 20... fxg3 {[%clk 0:00:59.6]}
21. Nxg7 {[%clk 0:00:20.5]} 21... gxf2+ {[%clk 0:00:59.4]} 22. Ke2 {[%clk
0:00:21.3]} 22... Ndxe3 {[%clk 0:00:54.1]} 23. Nh5 {[%clk 0:00:20.5]} 23... Bf5
{[%clk 0:00:51]} 24. Bxf5 {[%clk 0:00:16.9]} 24... Nxf5 {[%clk 0:00:51.9]} 25.
Rad1 {[%clk 0:00:15.6]} 25... Qe8+ {[%clk 0:00:47.8]} 26. Kf3 {[%clk 0:00:15.2]}
26... Qxh5 {[%clk 0:00:48.4]} 0-1

[Event "Early-Titled-Tuesday-Blitz-February-06-2024"]
[Site "Chess.com"]
[Date "2024.02.06"]
[Round "10"]
[White "Levanzovsky"]
[Black "PepeCuenca"]
[Result "0-1"]
[WhiteElo "2514"]
[BlackElo "2690"]
[TimeControl "180+1"]
[EndTime "9:54:16 PST"]
[Termination "PepeCuenca won by resignation"]

1. d4 {[%clk 0:03:00.9]} 1... Nf6 {[%clk 0:02:59.2]} 2. c4 {[%clk 0:03:01.4]}
2... g6 {[%clk 0:02:59.8]} 3. Nc3 {[%clk 0:03:01.9]} 3... Bg7 {[%clk 0:03:00.5]}
4. e4 {[%clk 0:03:02.4]} 4... d6 {[%clk 0:02:57.7]} 5. Nf3 {[%clk 0:03:02.4]}
5... O-O {[%clk 0:02:57.8]} 6. h3 {[%clk 0:03:02.9]} 6... e5 {[%clk 0:02:57.1]}
7. d5 {[%clk 0:03:02.9]} 7... Nh5 {[%clk 0:02:56.5]} 8. g3 {[%clk 0:02:57.9]}
8... Na6 {[%clk 0:02:41]} 9. Be2 {[%clk 0:02:55.7]} 9... f5 {[%clk 0:02:39.1]}
10. exf5 {[%clk 0:02:51.3]} 10... gxf5 {[%clk 0:02:40]} 11. Nxe5 {[%clk
0:02:44.9]} 11... Nxg3 {[%clk 0:02:34.6]} 12. fxg3 {[%clk 0:02:44.1]} 12... dxe5
{[%clk 0:02:28.5]} 13. Be3 {[%clk 0:02:39.2]} 13... f4 {[%clk 0:02:02.4]} 14.
Bf2 {[%clk 0:02:38.3]} 14... Bf5 {[%clk 0:01:38.4]} 15. gxf4 {[%clk 0:02:28.6]}
15... exf4 {[%clk 0:01:22.5]} 16. Rg1 {[%clk 0:02:28.5]} 16... Bg6 {[%clk
0:01:14.8]} 17. Bd3 {[%clk 0:02:05.5]} 17... Re8+ {[%clk 0:00:50.5]} 18. Kf1
{[%clk 0:02:05.2]} 18... Qd7 {[%clk 0:00:50.9]} 19. Qf3 {[%clk 0:01:53.3]} 19...
Re3 {[%clk 0:00:34.1]} 20. Bxe3 {[%clk 0:01:37.1]} 20... Bxd3+ {[%clk
0:00:33.6]} 21. Ke1 {[%clk 0:01:30]} 21... fxe3 {[%clk 0:00:30.7]} 22. Rd1
{[%clk 0:01:23.8]} 22... Bg6 {[%clk 0:00:28.9]} 23. Ne4 {[%clk 0:01:19.5]} 23...
Qe7 {[%clk 0:00:24.7]} 24. Ng5 {[%clk 0:01:10.4]} 24... Qb4+ {[%clk 0:00:22.7]}
25. Ke2 {[%clk 0:01:04.6]} 25... Qxb2+ {[%clk 0:00:22.5]} 26. Kxe3 {[%clk
0:01:01.2]} 26... Rf8 {[%clk 0:00:18]} 0-1

[Event "Early-Titled-Tuesday-Blitz-February-06-2024"]
[Site "Chess.com"]
[Date "2024.02.06"]
[Round "10"]
[White "Asteroxylon"]
[Black "BeardedNM"]
[Result "1-0"]
[WhiteElo "2363"]
[BlackElo "2219"]
[TimeControl "180+1"]
[EndTime "9:54:19 PST"]
[Termination "Asteroxylon won by resignation"]

1. e4 {[%clk 0:03:00.9]} 1... e6 {[%clk 0:02:58]} 2. d4 {[%clk 0:03:00.4]} 2...
d5 {[%clk 0:02:58.1]} 3. Bd3 {[%clk 0:03:01.1]} 3... dxe4 {[%clk 0:02:58.1]} 4.
Bxe4 {[%clk 0:03:02]} 4... Nf6 {[%clk 0:02:58.7]} 5. Bf3 {[%clk 0:03:02.4]} 5...
c5 {[%clk 0:02:59.3]} 6. Ne2 {[%clk 0:03:01.9]} 6... Nc6 {[%clk 0:02:56.7]} 7.
Be3 {[%clk 0:03:01.5]} 7... cxd4 {[%clk 0:02:56.5]} 8. Nxd4 {[%clk 0:03:02.1]}
8... Ne5 {[%clk 0:02:56]} 9. Nc3 {[%clk 0:02:57.3]} 9... Bb4 {[%clk 0:02:41.6]}
10. Nb5 {[%clk 0:02:48]} 10... O-O {[%clk 0:02:28.8]} 11. Qxd8 {[%clk
0:02:43.9]} 11... Nxf3+ {[%clk 0:02:17.8]} 12. gxf3 {[%clk 0:02:43.1]} 12...
Rxd8 {[%clk 0:02:18.1]} 13. Nc7 {[%clk 0:02:43.4]} 13... Rb8 {[%clk 0:02:16.2]}
14. Bxa7 {[%clk 0:02:43.5]} 14... Bd7 {[%clk 0:02:03.1]} 15. Bxb8 {[%clk
0:02:40.8]} 15... Rxb8 {[%clk 0:02:04]} 16. O-O-O {[%clk 0:02:28.5]} 16... Bxc3
{[%clk 0:02:00.5]} 17. bxc3 {[%clk 0:02:25.5]} 17... Rc8 {[%clk 0:01:59.7]} 18.
Rd6 {[%clk 0:02:12.8]} 18... Rxc7 {[%clk 0:01:51.7]} 19. Rhd1 {[%clk 0:02:13.3]}
19... Kf8 {[%clk 0:01:21.8]} 20. c4 {[%clk 0:02:13.5]} 20... Ke7 {[%clk
0:01:11.9]} 21. Rb6 {[%clk 0:02:13.4]} 21... Bc8 {[%clk 0:01:01.4]} 22. Rd4
{[%clk 0:02:09.4]} 22... Nd7 {[%clk 0:01:00.9]} 23. Rb5 {[%clk 0:01:56]} 23...
f6 {[%clk 0:00:55.7]} 24. f4 {[%clk 0:01:55.7]} 24... e5 {[%clk 0:00:39.1]} 25.
fxe5 {[%clk 0:01:55]} 25... Nxe5 {[%clk 0:00:39.2]} 26. c5 {[%clk 0:01:50.5]}
26... Bd7 {[%clk 0:00:28.6]} 27. Rb6 {[%clk 0:01:47.1]} 27... Bc6 {[%clk
0:00:16.2]} 28. f4 {[%clk 0:01:45.3]} 28... Nf3 {[%clk 0:00:12.3]} 29. Rd3
{[%clk 0:01:31.5]} 29... Nxh2 {[%clk 0:00:11.9]} 30. Rh3 {[%clk 0:01:31.2]}
30... Ng4 {[%clk 0:00:09.5]} 31. Rxh7 {[%clk 0:01:31.1]} 31... Kf7 {[%clk
0:00:09.7]} 32. Rh4 {[%clk 0:01:13.7]} 32... f5 {[%clk 0:00:09.6]} 33. Rh5
{[%clk 0:01:10.2]} 33... g6 {[%clk 0:00:09.2]} 34. Rh7+ {[%clk 0:01:10.1]} 1-0

[Event "Early-Titled-Tuesday-Blitz-February-06-2024"]
[Site "Chess.com"]
[Date "2024.02.06"]
[Round "10"]
[White "Sina_Movahed"]
[Black "vi_pranav"]
[Result "1-0"]
[WhiteElo "3045"]
[BlackElo "3057"]
[TimeControl "180+1"]
[EndTime "9:54:22 PST"]
[Termination "Sina_Movahed won by resignation"]

1. e4 {[%clk 0:03:00.9]} 1... e5 {[%clk 0:03:00.1]} 2. Nf3 {[%clk 0:03:00.8]}
2... Nc6 {[%clk 0:03:00.4]} 3. d4 {[%clk 0:03:01.5]} 3... exd4 {[%clk
0:03:00.5]} 4. Nxd4 {[%clk 0:03:02.4]} 4... Bc5 {[%clk 0:03:00.6]} 5. Be3 {[%clk
0:02:58.7]} 5... Qf6 {[%clk 0:02:55.1]} 6. c3 {[%clk 0:02:58.3]} 6... Nge7
{[%clk 0:02:55.3]} 7. Be2 {[%clk 0:02:57.5]} 7... d6 {[%clk 0:02:52.6]} 8. O-O
{[%clk 0:02:56.3]} 8... O-O {[%clk 0:02:47.7]} 9. Kh1 {[%clk 0:02:49.7]} 9...
Qg6 {[%clk 0:02:36.6]} 10. Nd2 {[%clk 0:02:48.9]} 10... Ne5 {[%clk 0:02:29.4]}
11. f4 {[%clk 0:02:47.5]} 11... Ng4 {[%clk 0:02:28.4]} 12. Bg1 {[%clk
0:02:47.3]} 12... Nf6 {[%clk 0:02:02.7]} 13. f5 {[%clk 0:02:27.5]} 13... Qh6
{[%clk 0:01:59.9]} 14. Rf3 {[%clk 0:02:27.9]} 14... Nd7 {[%clk 0:01:18.8]} 15.
Rg3 {[%clk 0:02:17.6]} 15... Qf6 {[%clk 0:01:06.9]} 16. Be3 {[%clk 0:02:11.3]}
16... h6 {[%clk 0:01:07.1]} 17. N2f3 {[%clk 0:02:01.4]} 17... Ne5 {[%clk
0:00:48.7]} 18. Qd2 {[%clk 0:01:56.3]} 18... Kh7 {[%clk 0:00:24.7]} 19. Rh3
{[%clk 0:01:49.3]} 19... Kg8 {[%clk 0:00:21.7]} 20. Rg1 {[%clk 0:01:44.9]} 20...
Ng4 {[%clk 0:00:16.1]} 21. Rf1 {[%clk 0:01:12.7]} 21... Nxe3 {[%clk 0:00:15.3]}
22. Qxe3 {[%clk 0:01:13.6]} 22... Nc6 {[%clk 0:00:14.7]} 23. g4 {[%clk
0:01:12.4]} 23... Re8 {[%clk 0:00:14.9]} 24. g5 {[%clk 0:01:11.1]} 24... hxg5
{[%clk 0:00:14.5]} 25. Nxg5 {[%clk 0:01:12]} 25... Nxd4 {[%clk 0:00:11]} 26.
cxd4 {[%clk 0:01:11.9]} 26... Bxd4 {[%clk 0:00:11.9]} 27. Qg3 {[%clk 0:01:10.9]}
27... Bxf5 {[%clk 0:00:01.5]} 28. Rxf5 {[%clk 0:01:09.5]} 28... Qg6 {[%clk
0:00:01.9]} 29. Bh5 {[%clk 0:01:08.9]} 1-0

[Event "Early-Titled-Tuesday-Blitz-February-06-2024"]
[Site "Chess.com"]
[Date "2024.02.06"]
[Round "10"]
[White "TigrVShlyape"]
[Black "Mikhail_Golubev"]
[Result "1-0"]
[WhiteElo "2945"]
[BlackElo "2654"]
[TimeControl "180+1"]
[EndTime "9:54:22 PST"]
[Termination "TigrVShlyape won by resignation"]

1. d4 {[%clk 0:02:56.3]} 1... Nf6 {[%clk 0:02:58.7]} 2. Bf4 {[%clk 0:02:53.4]}
2... d6 {[%clk 0:02:58.2]} 3. Nf3 {[%clk 0:02:48]} 3... Nbd7 {[%clk 0:02:58]} 4.
h3 {[%clk 0:02:48]} 4... g6 {[%clk 0:02:56.5]} 5. c3 {[%clk 0:02:47.6]} 5... Bg7
{[%clk 0:02:56.9]} 6. Nbd2 {[%clk 0:02:48]} 6... O-O {[%clk 0:02:56.8]} 7. e4
{[%clk 0:02:48.5]} 7... e5 {[%clk 0:02:40.7]} 8. dxe5 {[%clk 0:02:46.8]} 8...
dxe5 {[%clk 0:02:41.6]} 9. Be3 {[%clk 0:02:42.8]} 9... b6 {[%clk 0:02:31.4]} 10.
Qc2 {[%clk 0:02:14.2]} 10... Bb7 {[%clk 0:02:30.9]} 11. Bc4 {[%clk 0:01:56.1]}
11... Qe7 {[%clk 0:02:29.6]} 12. b4 {[%clk 0:01:45.9]} 12... a5 {[%clk
0:02:29.1]} 13. Rb1 {[%clk 0:01:45.2]} 13... axb4 {[%clk 0:01:47.1]} 14. cxb4
{[%clk 0:01:42.8]} 14... Ra3 {[%clk 0:01:38.4]} 15. O-O {[%clk 0:01:41.4]} 15...
Rfa8 {[%clk 0:01:37.8]} 16. Ng5 {[%clk 0:01:35.5]} 16... Rf8 {[%clk 0:01:34.2]}
17. Rfd1 {[%clk 0:01:33]} 17... c6 {[%clk 0:01:28.4]} 18. Bb3 {[%clk 0:01:24.9]}
18... h6 {[%clk 0:01:22.2]} 19. Nxf7 {[%clk 0:00:59.2]} 19... Rxf7 {[%clk
0:01:21.9]} 20. Bxf7+ {[%clk 0:00:59.1]} 20... Qxf7 {[%clk 0:01:19]} 21. Nc4
{[%clk 0:00:59.7]} 21... Ra7 {[%clk 0:01:18.8]} 22. a4 {[%clk 0:00:52.8]} 22...
Ba6 {[%clk 0:00:45.8]} 23. Nd6 {[%clk 0:00:50.8]} 23... Qe6 {[%clk 0:00:33.4]}
24. Qxc6 {[%clk 0:00:50.4]} 24... Bf8 {[%clk 0:00:33.6]} 25. b5 {[%clk
0:00:48.6]} 25... Nb8 {[%clk 0:00:13.8]} 26. Qxb6 {[%clk 0:00:47.6]} 1-0

[Event "Early-Titled-Tuesday-Blitz-February-06-2024"]
[Site "Chess.com"]
[Date "2024.02.06"]
[Round "10"]
[White "KhungThep"]
[Black "Kapitan_Bayan"]
[Result "1-0"]
[WhiteElo "2576"]
[BlackElo "2379"]
[TimeControl "180+1"]
[EndTime "9:54:23 PST"]
[Termination "KhungThep won by resignation"]

1. d4 {[%clk 0:02:54.7]} 1... d5 {[%clk 0:02:59.8]} 2. c4 {[%clk 0:02:54.6]}
2... dxc4 {[%clk 0:03:00.2]} 3. Nf3 {[%clk 0:02:53.6]} 3... Nf6 {[%clk
0:03:00.2]} 4. e3 {[%clk 0:02:52.8]} 4... e6 {[%clk 0:02:59.7]} 5. Bxc4 {[%clk
0:02:52.6]} 5... c5 {[%clk 0:03:00.3]} 6. O-O {[%clk 0:02:52.9]} 6... a6 {[%clk
0:03:00.3]} 7. Qe2 {[%clk 0:02:48.5]} 7... b5 {[%clk 0:03:00.1]} 8. Bd3 {[%clk
0:02:48.3]} 8... Bb7 {[%clk 0:02:56.3]} 9. Rd1 {[%clk 0:02:48.5]} 9... Qb6
{[%clk 0:02:54.4]} 10. a4 {[%clk 0:02:24.2]} 10... c4 {[%clk 0:02:37.5]} 11. Bc2
{[%clk 0:02:22.2]} 11... Nbd7 {[%clk 0:02:28.9]} 12. e4 {[%clk 0:02:18.8]} 12...
Be7 {[%clk 0:02:25.5]} 13. axb5 {[%clk 0:01:41.8]} 13... axb5 {[%clk 0:02:25.1]}
14. Rxa8+ {[%clk 0:01:41.7]} 14... Bxa8 {[%clk 0:02:26]} 15. Nc3 {[%clk
0:01:29.6]} 15... Bb4 {[%clk 0:02:08.5]} 16. d5 {[%clk 0:01:19.5]} 16... Bxc3
{[%clk 0:02:00.5]} 17. bxc3 {[%clk 0:01:06.9]} 17... e5 {[%clk 0:01:55.1]} 18.
Ba3 {[%clk 0:01:05.3]} 18... Bb7 {[%clk 0:01:50]} 19. Bb4 {[%clk 0:00:59.5]}
19... Ng8 {[%clk 0:01:38]} 20. Ra1 {[%clk 0:00:37]} 20... f6 {[%clk 0:01:32.6]}
21. Nh4 {[%clk 0:00:37.1]} 21... Ne7 {[%clk 0:01:20.5]} 22. Qg4 {[%clk
0:00:20.5]} 22... g6 {[%clk 0:01:16.3]} 23. g3 {[%clk 0:00:16.2]} 23... Kf7
{[%clk 0:01:10.9]} 24. Qxd7 {[%clk 0:00:14]} 24... Bc8 {[%clk 0:00:51.4]} 25.
Qxe7+ {[%clk 0:00:13.4]} 1-0

[Event "Early-Titled-Tuesday-Blitz-February-06-2024"]
[Site "Chess.com"]
[Date "2024.02.06"]
[Round "10"]
[White "FM_VS99"]
[Black "Jojo_898"]
[Result "1-0"]
[WhiteElo "2616"]
[BlackElo "2459"]
[TimeControl "180+1"]
[EndTime "9:54:28 PST"]
[Termination "FM_VS99 won by resignation"]

1. d4 {[%clk 0:03:00.9]} 1... Nf6 {[%clk 0:02:54]} 2. g3 {[%clk 0:03:01.1]} 2...
d5 {[%clk 0:02:50.6]} 3. Bg2 {[%clk 0:03:01.5]} 3... e6 {[%clk 0:02:49.7]} 4. c4
{[%clk 0:03:01.3]} 4... Ne4 {[%clk 0:02:49.2]} 5. Nf3 {[%clk 0:02:58.1]} 5...
Be7 {[%clk 0:02:44.9]} 6. O-O {[%clk 0:02:55.7]} 6... O-O {[%clk 0:02:44.2]} 7.
Bf4 {[%clk 0:02:41.9]} 7... c6 {[%clk 0:02:31.8]} 8. Nfd2 {[%clk 0:02:33.7]}
8... f5 {[%clk 0:02:31.5]} 9. f3 {[%clk 0:02:33.7]} 9... Nf6 {[%clk 0:02:29.5]}
10. Be3 {[%clk 0:02:27.2]} 10... Nbd7 {[%clk 0:02:27.5]} 11. Nc3 {[%clk
0:02:21.1]} 11... e5 {[%clk 0:02:26.5]} 12. cxd5 {[%clk 0:02:14.7]} 12... cxd5
{[%clk 0:02:25.8]} 13. Kh1 {[%clk 0:02:02.9]} 13... e4 {[%clk 0:02:21.5]} 14.
Qb3 {[%clk 0:02:02]} 14... Nb6 {[%clk 0:02:21]} 15. fxe4 {[%clk 0:01:58]} 15...
fxe4 {[%clk 0:02:20.4]} 16. Ndxe4 {[%clk 0:01:55.7]} 16... Kh8 {[%clk
0:02:16.9]} 17. Nxf6 {[%clk 0:01:33.7]} 17... Bxf6 {[%clk 0:02:16.7]} 18. Rad1
{[%clk 0:01:24.4]} 18... Re8 {[%clk 0:02:13.1]} 19. Bf4 {[%clk 0:01:24.6]} 19...
Bg4 {[%clk 0:02:11]} 20. a4 {[%clk 0:01:13.7]} 20... Bxe2 {[%clk 0:02:01.9]} 21.
Nxe2 {[%clk 0:01:11.4]} 21... Rxe2 {[%clk 0:02:02.8]} 22. a5 {[%clk 0:01:11.9]}
22... Nc4 {[%clk 0:02:02.5]} 23. Qxb7 {[%clk 0:01:11.9]} 23... Nxb2 {[%clk
0:01:42.6]} 24. Rb1 {[%clk 0:00:37.9]} 24... Bxd4 {[%clk 0:01:34]} 25. Bxd5
{[%clk 0:00:25.6]} 25... Rc8 {[%clk 0:01:29.8]} 26. Bg5 {[%clk 0:00:24.9]} 26...
Rcc2 {[%clk 0:01:09.1]} 27. Bg2 {[%clk 0:00:10.3]} 27... Rxg2 {[%clk 0:01:06.6]}
28. Qxg2 {[%clk 0:00:10.5]} 28... Rxg2 {[%clk 0:01:07.5]} 29. Bxd8 {[%clk
0:00:10.1]} 1-0

[Event "Early-Titled-Tuesday-Blitz-February-06-2024"]
[Site "Chess.com"]
[Date "2024.02.06"]
[Round "10"]
[White "Orphanator2009"]
[Black "xberli"]
[Result "1/2-1/2"]
[WhiteElo "2466"]
[BlackElo "2557"]
[TimeControl "180+1"]
[EndTime "9:54:29 PST"]
[Termination "Game drawn by agreement"]

1. e4 {[%clk 0:03:00.9]} 1... e5 {[%clk 0:02:55.3]} 2. Nf3 {[%clk 0:03:00.5]}
2... Nc6 {[%clk 0:02:54.5]} 3. Bb5 {[%clk 0:03:00.5]} 3... Nge7 {[%clk
0:02:54.8]} 4. O-O {[%clk 0:02:58.7]} 4... g6 {[%clk 0:02:54.1]} 5. d4 {[%clk
0:02:54.6]} 5... exd4 {[%clk 0:02:52.9]} 6. Nxd4 {[%clk 0:02:55.5]} 6... Bg7
{[%clk 0:02:51.4]} 7. Nxc6 {[%clk 0:02:54.7]} 7... Nxc6 {[%clk 0:02:50.7]} 8.
Nc3 {[%clk 0:02:47.4]} 8... O-O {[%clk 0:02:48.8]} 9. Be3 {[%clk 0:02:47.4]}
9... Re8 {[%clk 0:02:46.7]} 10. Bxc6 {[%clk 0:02:45.9]} 10... bxc6 {[%clk
0:02:41.6]} 11. Bd4 {[%clk 0:02:44.9]} 11... d6 {[%clk 0:02:36.8]} 12. Bxg7
{[%clk 0:02:43.6]} 12... Kxg7 {[%clk 0:02:37.7]} 13. Qd4+ {[%clk 0:02:42.8]}
13... Qf6 {[%clk 0:02:36.8]} 14. Rfd1 {[%clk 0:02:42.1]} 14... Qxd4 {[%clk
0:02:32.5]} 15. Rxd4 {[%clk 0:02:43]} 15... c5 {[%clk 0:02:32.6]} 16. Rd2 {[%clk
0:02:41.1]} 16... Rb8 {[%clk 0:02:31.7]} 17. b3 {[%clk 0:02:40.5]} 17... Bb7
{[%clk 0:02:25.8]} 18. f3 {[%clk 0:02:40.2]} 18... Bc6 {[%clk 0:02:25.8]} 19.
Nd5 {[%clk 0:02:37.4]} 19... Bxd5 {[%clk 0:02:22.8]} 20. Rxd5 {[%clk 0:02:36.9]}
20... a5 {[%clk 0:02:20.8]} 21. Rad1 {[%clk 0:02:35.8]} 21... a4 {[%clk
0:02:20]} 22. e5 {[%clk 0:02:22.3]} 22... axb3 {[%clk 0:02:17.7]} 23. axb3
{[%clk 0:02:15.8]} 23... Rxe5 {[%clk 0:01:55.5]} 24. Rxe5 {[%clk 0:02:13.4]}
24... dxe5 {[%clk 0:01:56.4]} 25. Rd5 {[%clk 0:02:13.7]} 25... c4 {[%clk
0:01:55.1]} 26. bxc4 {[%clk 0:02:14]} 26... Kf6 {[%clk 0:01:51]} 27. Rc5 {[%clk
0:02:12.8]} 27... Rb2 {[%clk 0:01:47.3]} 28. Rxc7 {[%clk 0:02:11.7]} 28... Rxc2
{[%clk 0:01:46.8]} 29. Rc6+ {[%clk 0:02:12.1]} 29... Kf5 {[%clk 0:01:45.7]} 30.
Rc7 {[%clk 0:02:12.3]} 30... f6 {[%clk 0:01:43.4]} 31. Rxh7 {[%clk 0:02:11.2]}
31... Rxc4 {[%clk 0:01:43.1]} 32. Rf7 {[%clk 0:02:08.9]} 32... Rc2 {[%clk
0:01:39.4]} 33. Rf8 {[%clk 0:02:08.7]} 33... Kg5 {[%clk 0:01:37.8]} 34. Ra8
{[%clk 0:02:08]} 34... f5 {[%clk 0:01:37]} 35. Ra4 {[%clk 0:02:06.9]} 35... Re2
{[%clk 0:01:35.5]} 36. Kf1 {[%clk 0:02:06.5]} 36... Rb2 {[%clk 0:01:35.2]} 37.
Rc4 {[%clk 0:02:05.8]} 37... Kf6 {[%clk 0:01:32.7]} 38. Rc6+ {[%clk 0:02:05.6]}
38... Kg5 {[%clk 0:01:31.7]} 39. Rc4 {[%clk 0:02:06.5]} 39... Kh5 {[%clk
0:01:31.1]} 40. Rc6 {[%clk 0:02:05.6]} 40... Rb5 {[%clk 0:01:28.8]} 41. Kf2
{[%clk 0:02:02.9]} 41... g5 {[%clk 0:01:25.3]} 42. Rf6 {[%clk 0:02:02.6]} 42...
f4 {[%clk 0:01:21]} 43. h3 {[%clk 0:01:56.5]} 43... Rb2+ {[%clk 0:01:16.2]} 44.
Kg1 {[%clk 0:01:56.7]} 44... Re2 {[%clk 0:01:11.5]} 45. Kh2 {[%clk 0:01:54.2]}
45... e4 {[%clk 0:01:09.1]} 46. fxe4 {[%clk 0:01:54.2]} 46... Rxe4 {[%clk
0:01:09.9]} 47. Rf8 {[%clk 0:01:54.3]} 47... Re2 {[%clk 0:01:05.9]} 48. Kg1
{[%clk 0:01:53.7]} 48... Kh4 {[%clk 0:01:01.2]} 49. Kh2 {[%clk 0:01:53]} 49...
Kh5 {[%clk 0:00:58.8]} 50. Rf6 {[%clk 0:01:52.3]} 50... Rb2 {[%clk 0:00:56.1]}
51. Kg1 {[%clk 0:01:49.3]} 51... Ra2 {[%clk 0:00:52.7]} 52. Rf8 {[%clk
0:01:45.8]} 52... Kg6 {[%clk 0:00:51.9]} 53. Re8 {[%clk 0:01:43.9]} 53... Ra1+
{[%clk 0:00:45.4]} 54. Kf2 {[%clk 0:01:42.7]} 54... Ra2+ {[%clk 0:00:43.2]} 55.
Re2 {[%clk 0:01:42.4]} 55... Ra3 {[%clk 0:00:41.9]} 56. Rc2 {[%clk 0:01:40.9]}
56... Kh5 {[%clk 0:00:39.3]} 57. Rc7 {[%clk 0:01:35.1]} 57... Ra2+ {[%clk
0:00:30.1]} 1/2-1/2

[Event "Early-Titled-Tuesday-Blitz-February-06-2024"]
[Site "Chess.com"]
[Date "2024.02.06"]
[Round "10"]
[White "Kotlyar_K"]
[Black "ScofieldMichael01"]
[Result "1-0"]
[WhiteElo "2506"]
[BlackElo "2619"]
[TimeControl "180+1"]
[EndTime "9:54:37 PST"]
[Termination "Kotlyar_K won by checkmate"]

1. d4 {[%clk 0:03:00.9]} 1... Nf6 {[%clk 0:02:47.6]} 2. c4 {[%clk 0:03:01.1]}
2... g6 {[%clk 0:02:46.5]} 3. g3 {[%clk 0:02:58.9]} 3... Bg7 {[%clk 0:02:47]} 4.
Bg2 {[%clk 0:02:59.6]} 4... O-O {[%clk 0:02:47.6]} 5. Nc3 {[%clk 0:03:00.2]}
5... d6 {[%clk 0:02:48.2]} 6. Nf3 {[%clk 0:03:00.2]} 6... Nc6 {[%clk 0:02:45]}
7. d5 {[%clk 0:03:00.6]} 7... Na5 {[%clk 0:02:43.2]} 8. b3 {[%clk 0:03:00.6]}
8... Nxd5 {[%clk 0:02:39.3]} 9. Nxd5 {[%clk 0:02:55.5]} 9... c6 {[%clk 0:02:25]}
10. Bd2 {[%clk 0:02:42.5]} 10... Bxa1 {[%clk 0:01:58.5]} 11. Nxe7+ {[%clk
0:02:33.2]} 11... Qxe7 {[%clk 0:01:57]} 12. Qxa1 {[%clk 0:02:33]} 12... b6
{[%clk 0:01:46.7]} 13. O-O {[%clk 0:02:29.4]} 13... f6 {[%clk 0:01:42.3]} 14.
Nd4 {[%clk 0:02:22.3]} 14... Bb7 {[%clk 0:01:19.8]} 15. e4 {[%clk 0:02:11.2]}
15... c5 {[%clk 0:01:16.2]} 16. Nb5 {[%clk 0:02:08]} 16... a6 {[%clk 0:01:14.4]}
17. Nc3 {[%clk 0:02:06.6]} 17... Bc6 {[%clk 0:01:07.3]} 18. Re1 {[%clk
0:02:04.2]} 18... Nb7 {[%clk 0:01:06.8]} 19. Nd5 {[%clk 0:02:03.6]} 19... Bxd5
{[%clk 0:01:03]} 20. exd5 {[%clk 0:02:04.5]} 20... Qf7 {[%clk 0:01:02.7]} 21.
Bh3 {[%clk 0:02:03]} 21... f5 {[%clk 0:00:56.8]} 22. Bg2 {[%clk 0:01:58.2]}
22... Rfe8 {[%clk 0:00:54.9]} 23. Re6 {[%clk 0:01:58.5]} 23... Re7 {[%clk
0:00:44.8]} 24. Bg5 {[%clk 0:01:55.2]} 24... Ree8 {[%clk 0:00:41.8]} 25. h4
{[%clk 0:01:46.3]} 25... Rab8 {[%clk 0:00:19.5]} 26. h5 {[%clk 0:01:44.2]} 26...
Rbc8 {[%clk 0:00:16.1]} 27. Qc3 {[%clk 0:01:38.6]} 27... Rc7 {[%clk 0:00:13.8]}
28. h6 {[%clk 0:01:33.2]} 28... Rcc8 {[%clk 0:00:09.3]} 29. Bf3 {[%clk
0:01:18.7]} 29... b5 {[%clk 0:00:09]} 30. Kg2 {[%clk 0:01:17.2]} 30... bxc4
{[%clk 0:00:08.8]} 31. bxc4 {[%clk 0:01:18.1]} 31... a5 {[%clk 0:00:09.1]} 32.
Qb2 {[%clk 0:01:12.4]} 32... Rb8 {[%clk 0:00:09.2]} 33. Qc3 {[%clk 0:01:11.3]}
33... a4 {[%clk 0:00:08.9]} 34. Rf6 {[%clk 0:01:08.5]} 34... Qd7 {[%clk
0:00:08.5]} 35. Bd1 {[%clk 0:01:09.2]} 35... Na5 {[%clk 0:00:08.1]} 36. Bxa4
{[%clk 0:01:08.5]} 36... Qxa4 {[%clk 0:00:04.6]} 37. Rxg6+ {[%clk 0:01:08]}
37... hxg6 {[%clk 0:00:05.5]} 38. Qg7# {[%clk 0:01:08.1]} 1-0